bitfinex/quotes_ETHUSD_20251206
["timestamp","ask_amount","ask_price","bid_price","bid_amount"]
[1765030382708,1.31676405,3038.6,3038.1,1.1031]
[1765030383002,3.75508799,3038.7,3038.5,0.4588]
[1765030383200,0.72559411,3038.7,3038.6,0.4588]
[1765030383906,4.01647507,3038.7,3038.6,0.4588]
[1765030384201,0.72559411,3038.7,3038.6,0.4588]
[1765030384385,0.72559411,3038.7,3038.6,0.923]
[1765030385503,4.01647507,3038.7,3038.6,0.923]
[1765030385824,4.01647507,3038.7,3038.6,0.4588]
[1765030386224,4.01647507,3038.7,3038.4,0.4642]
[1765030388719,4.01647507,3038.7,3038.2,0.9832]
[1765030389209,4.01647507,3038.7,3038.3,0.4736]
[1765030389735,0.72559411,3038.7,3038.6,0.4573]
[1765030390731,4.01647507,3038.7,3038.6,0.9309]
[1765030390912,4.01647507,3038.7,3038.6,0.4573]
[1765030391829,4.01647507,3038.7,3038.6,0.9309]
[1765030395433,4.01647507,3038.7,3038.6,0.4573]
[1765030396206,4.48717507,3038.7,3038.2,0.519]
[1765030396409,4.48717507,3038.7,3038.3,0.4736]
[1765030396608,0.1,3038.6,3038.2,0.519]
[1765030396918,3.39107399,3038.6,3038.2,0.9926]
[1765030397232,4.01648116,3038.7,3038.5,0.4573]
[1765030397422,4.01648116,3038.7,3038.6,0.4573]
[1765030400234,5.07758116,3038.7,3038.2,0.519]
[1765030400423,0.4904,3038.6,3038.2,0.519]
[1765030403239,3.78149398,3038.6,3038.2,0.519]
[1765030403418,4.01650414,3038.7,3038.5,0.4573]
[1765030405445,4.01650414,3038.7,3038.6,0.4573]
[1765030406167,4.01650414,3038.7,3038.3,0.4736]
[1765030406336,4.48720414,3038.7,3038.3,0.4736]
[1765030408250,4.01650414,3038.7,3038.3,0.4736]
[1765030408421,4.01650414,3038.7,3038.6,0.4573]
[1765030409733,4.01650414,3038.7,3038.6,0.9309]
[1765030410240,4.01650414,3038.7,3038.6,0.4573]
[1765030413626,4.48720414,3038.7,3038.4,0.4736]
[1765030414338,4.48720414,3038.7,3038.2,0.519]
[1765030414551,4.48720414,3038.7,3038.2,1.19418641]
[1765030414753,7.77811417,3038.7,3038.2,1.19418641]
[1765030415059,8.26851417,3038.7,3038.2,1.19418641]
[1765030415858,0.5904,3038.6,3038.2,0.72058641]
[1765030416066,0.4904,3038.6,3038.2,1.19418641]
[1765030416246,4.50690414,3038.7,3038.2,1.19418641]
[1765030416955,4.01650414,3038.7,3038.2,1.19418641]
[1765030417156,0.4904,3038.6,3038.2,1.19418641]
[1765030418037,3.78141828,3038.6,3038.2,1.19418641]
[1765030418468,3.29101828,3038.6,3038.2,1.19418641]
[1765030419269,3.76411828,3038.6,3038.2,1.19418641]
[1765030420074,3.29101828,3038.6,3038.2,1.19418641]
[1765030420287,3.29101828,3038.6,3038.3,0.4805]
[1765030426555,3.29101828,3038.6,3038.2,0.72058641]
[1765030426849,3.29101828,3038.6,3038.2,1.20108641]
[1765030427076,3.29101828,3038.6,3038.2,0.72058641]
[1765030427276,4.01651398,3038.7,3038.5,0.466]
[1765030427473,0.519,3039.1,3038.6,0.466]
[1765030427674,0.4751,3039.3,3039.0,0.466]
[1765030427675,3.29035204,3039.2,3039.0,0.466]
[1765030427865,0.72559411,3039.1,3039.0,0.466]
[1765030428270,0.72559411,3039.1,3038.7,0.4805]
[1765030429148,3.2905561,3039.0,3038.7,0.4805]
[1765030432663,3.2905561,3039.0,3038.6,0.519]
[1765030432859,0.1014,3038.7,3038.4,0.519]
[1765030433170,0.4568,3038.5,3038.4,0.519]
[1765030435685,0.4568,3038.5,3038.2,0.519]
[1765030435686,0.9264,3038.5,3038.2,0.519]
[1765030440888,0.9264,3038.5,3038.1,0.1801]
[1765030441188,0.9264,3038.5,3038.2,0.3928131]
[1765030441589,1.0264,3038.5,3038.2,0.3928131]
[1765030441762,0.9264,3038.5,3038.2,0.3928131]
[1765030442164,0.9264,3038.5,3038.1,0.6991]
[1765030442165,0.4568,3038.5,3038.1,0.6991]
[1765030442358,0.4696,3038.4,3038.1,0.519]
[1765030444588,0.4696,3038.6,3038.1,4.26692159]
[1765030444772,11.01401328,3038.9,3038.1,4.26692159]
[1765030444773,0.7584,3038.9,3038.5,0.4727]
[1765030444965,1.228,3038.9,3038.5,0.4727]
[1765030445161,3.76041233,3038.8,3038.5,0.4727]
[1765030445389,0.4696,3038.7,3038.3,0.4564]
[1765030445595,0.4858,3038.6,3038.3,0.4564]
[1765030445770,3.29089928,3038.7,3038.6,0.4727]
[1765030446481,4.27894176,3038.9,3038.6,0.4727]
[1765030447093,0.4696,3038.8,3038.6,0.4727]
[1765030447263,0.4696,3038.8,3038.4,0.4564]
[1765030449097,3.76043009,3038.8,3038.4,0.4564]
[1765030453892,3.76043009,3038.8,3038.2,0.519]
[1765030454096,3.76043009,3038.8,3038.3,0.51272716]
[1765030454766,3.76043009,3038.8,3038.3,0.96652716]
[1765030454767,3.77113009,3038.8,3038.3,0.96652716]
[1765030458795,3.29083009,3038.8,3038.3,0.96652716]
[1765030459000,3.7711978,3038.7,3038.3,0.96652716]
[1765030462803,3.7711978,3038.7,3038.3,0.51272716]
[1765030463510,0.4803,3038.6,3038.3,0.51272716]
[1765030463676,0.4803,3038.6,3038.2,0.519]
[1765030464586,0.4755,3038.3,3038.2,0.519]
[1765030465180,0.5803,3038.6,3038.2,0.519]
[1765030465375,0.4803,3038.6,3038.2,0.519]
[1765030468185,3.77132034,3038.6,3038.2,0.519]
[1765030468378,0.4803,3038.5,3038.2,0.519]
[1765030468578,0.4803,3038.5,3038.2,0.90006388]
[1765030469908,0.4803,3038.5,3038.2,0.38106388]
[1765030471906,3.77122439,3038.7,3038.2,0.38106388]
[1765030472101,0.4803,3038.6,3038.2,0.38106388]
[1765030472301,0.4755,3038.3,3038.2,0.38106388]
[1765030473008,0.4803,3038.6,3038.2,0.38106388]
[1765030473208,0.4803,3038.6,3038.1,0.519]
[1765030473399,0.4803,3038.6,3038.1,3.81052149]
[1765030474485,0.4803,3038.6,3038.1,4.26432149]
[1765030475115,0.5803,3038.6,3038.1,4.26432149]
[1765030475321,0.4803,3038.6,3038.1,4.26432149]
[1765030476494,0.4803,3038.6,3038.1,3.81052149]
[1765030478415,3.29092439,3038.7,3038.1,0.88728312]
[1765030478610,0.4803,3038.6,3038.1,1.40628312]
[1765030480554,3.77129975,3038.6,3038.1,1.40628312]
[1765030481329,3.29099975,3038.6,3038.1,1.40628312]
[1765030481516,0.4582,3038.5,3038.1,1.40628312]
[1765030481717,0.4582,3038.5,3038.2,0.46978984]
[1765030481917,0.4582,3038.5,3038.0,3.29161524]
[1765030482133,3.74934629,3038.5,3038.0,0.519]
[1765030482744,0.4582,3038.4,3038.0,0.519]
[1765030484423,4.83755042,3038.6,3038.0,4.2789202]
[1765030484624,4.73755042,3038.6,3038.0,4.2789202]
[1765030488722,4.73755042,3038.6,3038.1,0.55956842]
[1765030489959,0.4582,3038.5,3038.1,0.55956842]
[1765030491158,3.74931279,3038.5,3038.1,0.55956842]
[1765030492026,0.4528,3038.4,3038.1,0.55956842]
[1765030496759,0.4528,3038.4,3037.9,3.78222128]
[1765030497049,0.4528,3038.4,3038.0,0.37822213]
[1765030497254,0.4528,3038.4,3038.0,3.2916368]
[1765030498326,0.4528,3038.4,3037.9,3.78220437]
[1765030498960,0.4528,3038.3,3037.8,3.29181541]
[1765030499456,0.4528,3038.3,3037.9,3.29174511]
[1765030499659,0.4528,3038.3,3037.8,3.29185594]
[1765030499848,4.27952011,3038.5,3037.9,1.003362]
[1765030500050,4.73232011,3038.5,3037.9,0.4905]
[1765030500357,4.27952011,3038.5,3037.9,0.4905]
[1765030500656,0.4528,3038.4,3037.9,0.4905]
[1765030502758,0.4528,3038.4,3037.9,3.7822377]
[1765030504928,4.27939676,3038.6,3038.3,0.4734]
[1765030504929,0.98836854,3038.6,3038.3,0.4734]
[1765030505135,0.519,3038.6,3038.3,0.4734]
[1765030506059,0.519,3038.6,3038.3,0.9639]
[1765030506360,0.519,3038.6,3038.3,0.4734]
[1765030507333,0.519,3038.6,3038.5,0.4734]
[1765030507852,4.27920658,3038.7,3038.5,0.4734]
[1765030508451,0.519,3038.8,3038.6,0.4734]
[1765030509541,1.69739411,3039.1,3038.7,0.4988]
[1765030509735,3.51314089,3039.1,3038.7,0.4988]
[1765030509940,1.47982529,3039.0,3038.4,0.45]
[1765030510467,4.77041573,3039.0,3038.4,0.45]
[1765030510670,4.77041573,3039.0,3038.4,3.74118501]
[1765030511190,4.77041573,3039.0,3038.4,0.45]
[1765030512264,4.77041573,3039.0,3038.4,3.74119291]
[1765030512665,1.47982529,3039.0,3038.4,3.29119291]
[1765030512844,0.98822529,3039.0,3038.4,3.29119291]
[1765030513164,4.2788216,3039.0,3038.5,0.45]
[1765030513670,4.7704216,3039.0,3038.5,0.45]
[1765030514860,1.24459411,3039.1,3038.9,0.4988]
[1765030515073,5.16961695,3039.1,3038.9,0.4988]
[1765030515278,0.9455,3039.0,3038.6,0.45]
[1765030516993,4.23612052,3039.0,3038.6,0.45]
[1765030520104,4.23612052,3039.0,3038.4,1.31676405]
[1765030520105,3.29045661,3039.1,3038.7,0.45]
[1765030520404,3.78205661,3039.1,3038.6,1.43806906]
[1765030520605,3.78205661,3039.1,3038.7,0.47291369]
[1765030523080,3.78205661,3039.1,3038.3,0.45]
[1765030523081,0.4539,3038.8,3038.3,0.45]
[1765030523280,0.4916,3039.0,3038.3,0.98817972]
[1765030523281,0.1313,3038.4,3038.3,0.98817972]
[1765030523679,0.1313,3038.4,3038.0,0.45]
[1765030523907,0.4916,3038.6,3038.1,0.50584451]
[1765030524066,1.31676405,3038.8,3038.5,0.4988]
[1765030524268,1.31676405,3039.0,3038.1,1.49409259]
[1765030524269,0.002,3040.3,3038.6,24.507122]
[1765030524507,21.8872212,3042.7,3038.6,24.507122]
[1765030524508,7.68878968,3042.6,3041.5,6.34016154]
[1765030524790,0.1919,3044.0,3041.5,6.34016154]
[1765030524791,3.96875894,3044.0,3042.5,6.34016154]
[1765030524968,0.4916,3043.9,3042.8,3.28024]
[1765030525170,0.4916,3043.9,3042.9,0.72559411]
[1765030525398,0.1919,3044.0,3042.9,0.72559411]
[1765030525399,0.1919,3044.0,3043.2,3.28024]
[1765030525566,0.1919,3044.0,3043.0,6.86616154]
[1765030525567,0.1919,3044.2,3043.4,3.28024]
[1765030525765,0.1919,3044.2,3043.6,3.28024]
[1765030525965,0.1919,3044.2,3043.8,3.28024]
[1765030526297,0.1919,3044.4,3043.9,0.526]
[1765030526466,0.1919,3044.4,3044.0,3.28024]
[1765030526663,3.28483188,3044.3,3044.0,3.28024]
[1765030526969,3.28482823,3044.3,3044.0,3.28024]
[1765030527302,0.4916,3044.6,3044.0,3.28024]
[1765030527504,0.4916,3044.6,3043.8,0.72559411]
[1765030527668,1.80836405,3044.9,3044.0,4.97457897]
[1765030527997,1.31676405,3044.9,3044.1,3.28024]
[1765030528205,1.31676405,3045.2,3044.5,3.28024]
[1765030528206,1.80836405,3045.2,3044.5,3.28024]
[1765030528406,1.31676405,3045.9,3044.5,3.28024]
[1765030528407,3.28327,3045.8,3044.8,3.28024]
[1765030528705,3.28327,3045.8,3044.7,0.86860419]
[1765030528706,0.1919,3044.9,3044.7,0.86860419]
[1765030528892,0.1919,3044.9,3044.8,1.21871652]
[1765030529087,0.98635703,3046.6,3044.9,12.214199]
[1765030529286,3.2822398,3046.7,3046.0,0.86519521]
[1765030529527,3.2822398,3046.7,3045.6,1.73039043]
[1765030529528,0.1,3045.9,3045.6,0.86519521]
[1765030529804,0.4916,3046.5,3045.2,1.73039043]
[1765030529805,0.6458,3045.7,3045.2,0.86519521]
[1765030530023,0.1919,3045.7,3045.6,0.86519521]
[1765030530188,0.531,3046.3,3045.6,0.69009633]
[1765030530189,0.2919,3045.8,3045.6,0.69009633]
[1765030530516,0.2919,3045.8,3045.5,1.14736974]
[1765030530517,0.531,3046.3,3045.7,0.68859372]
[1765030530730,0.5916,3046.6,3046.0,0.86070752]
[1765030530947,0.4916,3046.6,3046.2,0.86070752]
[1765030531084,1.31676405,3046.9,3046.4,1.73039043]
[1765030531281,1.50866405,3046.9,3046.8,1.14615414]
[1765030531486,1.31676405,3046.9,3046.8,0.68859372]
[1765030531696,0.4916,3047.8,3046.8,0.93049214]
[1765030532046,0.16547963,3050.2,3047.9,0.41550399]
[1765030532186,1e-08,3050.2,3050.0,0.405504]
[1765030532384,8.58938623,3053.4,3049.9,10.87012088]
[1765030532385,0.4916,3052.8,3051.7,0.1919]
[1765030532615,4.608825,3052.8,3051.9,0.84831782]
[1765030532926,4.608825,3052.8,3052.1,0.84831782]
[1765030532927,1.31676405,3052.6,3052.1,0.84831782]
[1765030533079,0.1,3052.8,3052.3,0.84831782]
[1765030533281,0.1919,3052.9,3052.0,0.84831782]
[1765030533505,0.1,3053.3,3052.1,0.67398515]
[1765030533785,0.1785,3053.2,3052.2,0.67398515]
[1765030534009,0.2785,3053.2,3052.3,0.67398515]
[1765030534193,0.2785,3053.2,3052.4,0.67398515]
[1765030534194,0.1785,3053.2,3052.4,0.67398515]
[1765030534394,0.1785,3053.2,3051.8,0.98386946]
[1765030534395,0.1785,3052.4,3051.8,0.98386946]
[1765030534594,0.1,3052.3,3051.2,0.535]
[1765030535016,0.72559411,3051.9,3051.6,0.1785]
[1765030535319,2.283746,3053.7,3051.6,0.1785]
[1765030535514,9.82382604,3053.8,3051.8,0.405504]
[1765030535718,6.54921736,3053.8,3052.0,0.405504]
[1765030535921,6.54921736,3053.8,3052.1,1.1203385]
[1765030535922,1.31676405,3053.1,3052.1,1.1203385]
[1765030536094,1.31676405,3053.1,3052.1,0.535]
[1765030536296,1.31676405,3053.5,3052.2,0.45]
[1765030536614,1.31676405,3053.5,3052.2,0.985]
[1765030536780,5.264334,3053.1,3051.6,0.1785]
[1765030536981,0.72559411,3052.4,3051.6,0.1785]
[1765030537182,0.1,3052.0,3051.6,0.1785]
[1765030537414,0.1,3051.8,3050.6,0.196]
[1765030537631,0.1,3052.1,3050.7,0.986]
[1765030538004,0.6419,3052.3,3050.7,0.986]
[1765030538005,0.1919,3052.3,3050.8,0.45]
[1765030538204,0.1919,3052.2,3050.8,0.45]
[1765030538408,0.1,3052.3,3050.9,0.536]
[1765030538622,1.26159411,3052.4,3050.9,0.536]
[1765030538623,0.72559411,3052.4,3050.9,0.536]
[1765030538938,1.31676405,3052.3,3051.2,1.31676405]
[1765030539095,3.27632527,3052.2,3051.2,1.31676405]
[1765030539296,0.72559411,3052.5,3051.3,0.6665]
[1765030539531,0.2919,3052.4,3050.9,0.4796]
[1765030539729,0.2919,3052.4,3051.0,0.536]
[1765030539730,0.1,3051.8,3051.0,0.536]
[1765030540030,0.1,3051.8,3049.8,4.59557473]
[1765030540031,0.405504,3052.3,3050.4,0.1869]
[1765030540032,0.1919,3051.1,3050.4,0.1869]
[1765030540326,0.1919,3051.1,3050.6,0.536]
[1765030540509,0.096,3051.0,3050.6,0.536]
[1765030540705,0.096,3051.0,3050.3,0.536]
[1765030541098,1.31676405,3051.6,3050.3,0.536]
[1765030541099,0.72559411,3051.4,3050.4,0.4796]
[1765030541298,0.72559411,3051.4,3050.6,3.5]
[1765030541510,3.27707684,3051.5,3050.6,0.39796]
[1765030541725,3.27698301,3051.6,3051.4,0.1869]
[1765030541921,6.55396602,3051.6,3051.2,0.535]
[1765030542122,6.55396602,3051.6,3051.0,0.535]
[1765030542320,6.55396602,3051.6,3051.0,0.507902]
[1765030542602,2.04235816,3051.5,3051.0,0.507902]
[1765030543231,3.27739905,3051.2,3051.0,0.3693063]
[1765030543434,4.59413468,3051.3,3050.7,0.6665]
[1765030543435,3.27718424,3051.4,3050.7,0.7219]
[1765030543602,6.5522212,3052.4,3051.4,0.4873]
[1765030543802,6.5522212,3052.4,3051.5,0.535]
[1765030544002,9.8283318,3052.4,3051.5,1.0146]
[1765030545021,3.2761106,3052.4,3052.2,0.6742]
[1765030545346,0.72559411,3053.2,3052.3,1.0223]
[1765030545520,1.80212058,3053.2,3052.3,1.5019]
[1765030545722,9.82543476,3053.3,3052.3,1.5019]
[1765030545920,0.72559411,3053.2,3052.3,1.5019]
[1765030546118,2.04235816,3053.2,3052.3,1.5019]
[1765030546540,6.55028984,3053.3,3052.4,1.0146]
[1765030546706,6.55028984,3053.3,3052.4,1.18348]
[1765030546906,0.096,3054.0,3053.2,0.1869]
[1765030547111,0.002,3054.5,3053.4,0.405504]
[1765030547314,0.002,3054.5,3054.1,0.1869]
[1765030547512,6.54907344,3054.8,3054.1,0.1869]
[1765030547513,0.002,3054.8,3054.1,0.1869]
[1765030547707,0.002,3055.1,3054.2,0.4796]
[1765030547907,0.002,3055.1,3054.3,0.405504]
[1765030548153,3.27521867,3055.1,3054.4,0.536]
[1765030548313,3.27521867,3055.1,3054.1,0.1869]
[1765030548314,6.54843317,3055.1,3054.3,0.4796]
[1765030548512,6.54843317,3055.1,3054.4,0.536]
[1765030548842,3.27521527,3055.1,3054.4,0.536]
[1765030549029,0.002,3055.1,3054.5,0.4796]
[1765030549232,3.27110878,3057.1,3054.5,0.4796]
[1765030549233,9.81556921,3056.4,3054.5,0.4796]
[1765030549432,18.557092,3055.8,3054.6,0.537]
[1765030549632,8.78528623,3056.0,3054.6,0.537]
[1765030549633,3.913266,3055.6,3054.6,0.537]
[1765030549813,0.1959,3055.7,3054.6,0.5157932]
[1765030550212,0.1959,3055.7,3054.1,0.1869]
[1765030550213,0.1,3054.7,3054.1,0.1869]
[1765030550448,0.1,3055.6,3054.3,2.0]
[1765030550742,0.72559411,3056.0,3054.6,0.405504]
[1765030550743,0.1,3055.8,3054.6,0.405504]
[1765030550942,1.01074692,3056.3,3054.9,0.405504]
[1765030551143,1.01074692,3056.3,3054.6,2.0]
[1765030551144,6.5445026,3056.0,3054.6,2.0]
[1765030551350,1.31676405,3055.5,3054.7,0.537]
[1765030551514,1.31676405,3055.5,3054.8,5.0]
[1765030551715,2.04235816,3055.9,3055.4,0.1869]
[1765030551948,2.23825816,3055.9,3054.9,0.1869]
[1765030552134,0.2959,3055.8,3054.9,0.537]
[1765030552453,0.72559411,3055.3,3054.5,0.538]
[1765030552646,1.41676405,3055.6,3054.5,0.538]
[1765030552850,1.61266405,3055.6,3054.5,0.538]
[1765030553045,1.31676405,3055.6,3054.4,0.4796]
[1765030553248,0.1,3055.3,3054.2,2.0]
[1765030553449,1.31676405,3054.7,3054.2,2.0]
[1765030553649,1.31676405,3054.9,3054.2,2.0]
[1765030553949,1.31676405,3054.7,3054.2,2.0]
[1765030554352,1.31676405,3054.7,3052.4,1.48564405]
[1765030554353,0.1,3054.1,3052.9,0.6665]
[1765030554553,0.1,3054.1,3052.4,0.16888]
[1765030554554,0.1,3054.0,3053.0,2.0]
[1765030554738,0.405504,3053.5,3052.2,0.1869]
[1765030555045,0.72559411,3053.1,3052.1,0.538]
[1765030555247,1.12617521,3053.0,3052.0,0.4796]
[1765030555450,1.12617521,3053.0,3052.1,2.0]
[1765030555618,1.12617521,3053.0,3051.5,0.1869]
[1765030555619,0.196,3052.9,3051.6,0.4796]
[1765030555820,0.1,3052.6,3051.7,2.0]
[1765030556139,0.2919,3052.9,3051.7,2.0]
[1765030556344,0.2919,3052.9,3051.6,1.0166]
[1765030556345,1.31676405,3052.5,3051.9,0.5]
[1765030556644,1.31676405,3052.7,3051.9,0.5]
[1765030557159,0.72559411,3052.5,3052.0,2.0]
[1765030557454,6.5517919,3052.6,3052.1,2.0]
[1765030557659,6.5517919,3052.6,3052.4,0.1869]
[1765030558158,6.5517919,3052.6,3052.0,0.4796]
[1765030558454,6.5517919,3052.6,3051.9,2.0]
[1765030558455,1.31676405,3052.5,3051.9,2.0]
[1765030558823,1.31676405,3052.5,3051.8,0.537]
[1765030559151,9.8283318,3052.4,3051.7,0.537]
[1765030559323,2.04235816,3052.3,3051.8,2.0]
[1765030559926,1.31676405,3052.1,3051.6,2.537]
[1765030560253,0.72559411,3052.3,3051.7,2.0]
[1765030560751,1.31676405,3052.2,3051.7,2.0]
[1765030560958,1.31676405,3052.1,3051.6,2.537]
[1765030561150,6.55307994,3052.0,3051.7,2.0]
[1765030561456,6.55307994,3052.0,3050.9,1.31676405]
[1765030561457,0.1959,3051.7,3050.7,0.4637]
[1765030561654,0.2566,3051.6,3050.4,0.1844]
[1765030561858,0.1,3051.3,3049.9,0.4637]
[1765030562031,0.1,3051.3,3049.5,1.31676405]
[1765030562032,0.9299476,3051.3,3050.3,2.0]
[1765030562233,0.1,3051.1,3050.3,2.0]
[1765030562568,0.1959,3051.2,3048.5,4.59698587]
[1765030562569,0.1,3050.4,3049.8,0.537]
[1765030562862,1.45849411,3051.2,3049.8,0.537]
[1765030562863,0.1,3051.0,3049.9,2.0]
[1765030563022,0.1,3051.1,3049.9,2.0]
[1765030563023,1.31676405,3050.3,3049.9,2.0]
[1765030563231,9.83542062,3050.2,3049.0,1.78046405]
[1765030563532,9.83542062,3050.2,3049.6,2.0]
[1765030564056,3.27799771,3050.7,3049.8,2.0]
[1765030564255,5.41994463,3051.1,3050.2,2.0]
[1765030564256,9.83284167,3051.0,3050.2,2.0]
[1765030564458,6.55522778,3051.0,3050.4,2.0]
[1765030564644,6.55522778,3051.0,3050.5,0.03278151]
[1765030565223,6.55522778,3051.0,3050.3,0.537]
[1765030565428,1.31676405,3050.9,3050.4,2.0]
[1765030566148,9.83284167,3051.0,3050.4,2.0]
[1765030566348,1.31676405,3050.9,3050.4,2.0]
[1765030566549,1.31676405,3050.7,3050.2,2.537]
[1765030566733,1.31676405,3050.7,3050.3,2.0]
[1765030566935,9.83284167,3051.0,3050.3,2.0]
[1765030566936,6.55522778,3051.0,3050.6,0.4955]
[1765030567134,6.55522778,3051.0,3050.7,2.0]
[1765030567634,0.1,3051.1,3050.7,2.0]
[1765030568157,13.10976264,3051.2,3050.2,2.0]
[1765030568359,1.31676405,3051.1,3050.4,2.0]
[1765030568554,1.31676405,3051.1,3050.3,0.537]
[1765030568555,1.31676405,3051.1,3050.5,0.537]
[1765030568758,1.41676405,3051.1,3050.2,0.4637]
[1765030568960,1.41676405,3051.1,3050.3,0.537]
[1765030568961,0.1,3050.9,3050.3,0.537]
[1765030569162,1.31676405,3051.1,3050.4,2.0]
[1765030569346,1.31676405,3050.8,3050.4,2.0]
[1765030569555,1.31676405,3050.6,3049.9,2.0]
[1765030569857,1.31676405,3050.6,3050.0,2.0]
[1765030570429,3.27793621,3050.7,3050.5,0.4641]
[1765030570833,3.27793621,3050.7,3050.6,2.0]
[1765030571449,6.55522778,3051.0,3050.5,2.0]
[1765030571658,1.31676405,3050.9,3050.5,2.0]
[1765030572166,1.41676405,3050.9,3050.5,2.0]
[1765030572532,1.31676405,3050.9,3050.5,2.0]
[1765030572733,0.1957,3050.6,3049.6,0.4743]
[1765030572951,1.41676405,3050.7,3049.7,0.537]
[1765030572952,0.157,3050.5,3049.7,0.537]
[1765030573263,0.157,3050.5,3049.8,2.0]
[1765030573433,6.55651716,3050.4,3049.8,2.0]
[1765030573631,0.72559411,3050.8,3050.4,0.6616]
[1765030573632,3.27782876,3050.8,3050.4,0.6616]
[1765030573835,6.55565752,3050.8,3050.4,0.6616]
[1765030574035,6.55565752,3050.8,3050.2,0.7345]
[1765030574236,6.55565752,3050.8,3050.3,2.0]
[1765030575268,1.31676405,3050.7,3050.3,2.0]
[1765030575636,6.55608732,3050.6,3050.3,2.0]
[1765030576441,6.55608732,3050.6,3050.5,2.0]
[1765030576442,3.27804366,3050.6,3050.5,2.0]
[1765030576642,3.27804366,3050.6,3050.5,2.4641]
[1765030576948,6.55608732,3050.6,3050.3,2.0]
[1765030577546,6.55608732,3050.6,3050.3,0.4743]
[1765030577744,4.59433572,3051.1,3050.2,2.0]
[1765030577745,0.1,3050.9,3050.2,2.0]
[1765030577940,9.93284167,3051.0,3050.2,2.0]
[1765030578244,1.41676405,3050.7,3050.2,2.0]
[1765030578449,1.51246405,3050.3,3050.0,2.0]
[1765030578834,0.1957,3050.3,3050.0,2.0]
[1765030579035,1.31676405,3050.2,3050.0,2.0]
[1765030579239,1.31676405,3050.5,3050.0,2.0]
[1765030579436,1.31676405,3050.3,3050.0,2.0]
[1765030579639,4.79104508,3050.1,3049.5,2.0]
[1765030579884,11.34820714,3050.1,3049.6,0.537]
[1765030580046,1.31676405,3049.9,3049.7,2.0]
[1765030580379,1.31676405,3049.9,3049.5,2.0]
[1765030580380,1.16676405,3049.9,3049.5,2.0]
[1765030580582,1.06676405,3049.9,3049.5,2.0]
[1765030580780,11.15250714,3050.1,3049.5,2.0]
[1765030580781,6.55716206,3050.1,3049.8,0.4641]
[1765030580950,1.31676405,3050.0,3049.4,0.001]
[1765030581157,1.31676405,3050.0,3049.5,2.0]
[1765030581551,6.55716206,3050.1,3049.5,2.0]
[1765030581785,6.55694708,3050.2,3049.5,2.0]
[1765030581989,9.83542062,3050.2,3049.6,1.0103]
[1765030582193,6.55694708,3050.2,3049.7,2.0]
[1765030582540,6.55694708,3050.2,3049.7,0.4743]
[1765030583186,1.31676405,3050.1,3049.6,0.536]
[1765030583374,1.31676405,3050.1,3049.7,2.0]
[1765030583750,6.55737704,3050.0,3049.7,2.0]
[1765030583952,6.55737704,3050.0,3049.4,0.001]
[1765030583953,1.31676405,3049.9,3049.5,2.536]
[1765030584151,1.31676405,3049.9,3049.6,2.0]
[1765030584565,1.31676405,3049.9,3049.5,2.0]
[1765030585181,0.1957,3049.6,3049.4,0.001]
[1765030585481,0.2957,3049.6,3049.4,0.001]
[1765030585650,0.1957,3049.6,3049.4,0.001]
[1765030585845,3.2792261,3049.5,3049.4,0.001]
[1765030587956,6.37861178,3049.9,3049.4,0.001]
[1765030587958,6.55567458,3050.8,3049.4,1.4754]
[1765030588167,6.55567458,3050.8,3050.3,2.0]
[1765030588369,6.55567458,3050.8,3050.3,0.4743]
[1765030588562,8.1792634,3051.8,3050.3,0.4743]
[1765030588563,4.59347725,3051.9,3050.7,0.4641]
[1765030588760,0.536,3051.8,3050.8,2.0]
[1765030589067,0.1997,3051.4,3050.8,2.0]
[1765030589267,0.1997,3051.4,3050.7,2.0]
[1765030589470,0.0997,3051.4,3050.7,2.0]
[1765030589772,6.55458328,3051.3,3050.7,2.0]
[1765030591089,0.1957,3050.8,3049.5,1.31676405]
[1765030591284,1.31676405,3050.3,3049.7,2.0]
[1765030591476,1.31676405,3050.3,3049.4,0.4753]
[1765030591477,1.31676405,3050.1,3049.4,0.537]
[1765030591787,0.1,3049.8,3049.4,0.001]
[1765030592181,1.31676405,3049.5,3049.4,0.001]
[1765030592688,1.51246405,3049.5,3049.4,0.001]
[1765030593681,4.79169015,3049.5,3049.4,0.001]
[1765030594311,3.2792261,3049.5,3049.4,0.001]
[1765030594795,3.27901105,3049.7,3049.4,0.001]
[1765030594972,6.5580221,3049.7,3049.4,0.001]
[1765030595180,3.27827096,3050.4,3049.4,0.001]
[1765030595181,0.1,3050.9,3049.6,0.4641]
[1765030595371,0.1,3050.5,3049.7,0.536]
[1765030595695,0.1,3050.4,3049.7,0.536]
[1765030595868,6.55673212,3050.3,3049.7,0.536]
[1765030596075,1.31676405,3050.1,3049.7,0.536]
[1765030596262,1.31676405,3050.1,3049.6,0.536]
[1765030596796,1.31676405,3050.1,3049.7,0.4743]
[1765030597864,3.27868852,3050.0,3049.7,0.4743]
[1765030598064,6.55737704,3050.0,3049.7,1.0093]
[1765030598694,3.27868852,3050.0,3049.8,0.4743]
[1765030598998,6.5570483,3050.2,3049.9,0.4641]
[1765030599214,6.5570483,3050.2,3050.0,0.4671]
[1765030599492,3.2784814,3050.2,3050.1,0.1823]
[1765030599881,6.5570483,3050.2,3049.8,0.535]
[1765030600062,1.31676405,3050.1,3049.6,0.535]
[1765030600964,1.31676405,3050.1,3049.6,1.0021]
[1765030602165,6.55737704,3050.0,3049.6,0.4671]
[1765030602365,6.55737704,3050.0,3049.6,1.0021]
[1765030602893,6.55737704,3050.0,3049.7,0.4671]
[1765030603100,3.27868852,3050.0,3049.9,0.4671]
[1765030603268,1.31676405,3050.9,3049.9,0.4671]
[1765030603469,1.31676405,3050.5,3050.1,0.4671]